bitfinex/quotes_BTCUSD_20250826
["timestamp","ask_amount","ask_price","bid_price","bid_amount"]
[1756229205378,0.1819334,110130.0,110120.0,0.20422907]
[1756229206038,0.1819334,110130.0,110120.0,0.02260902]
[1756229206267,0.1819334,110130.0,110120.0,0.20549932]
[1756229206458,0.1819334,110130.0,110120.0,0.20322907]
[1756229206632,0.00032985,110130.0,110120.0,0.20522907]
[1756229206840,0.00032985,110130.0,110120.0,0.20622907]
[1756229207242,0.1819334,110130.0,110120.0,0.20622907]
[1756229208032,0.00032985,110130.0,110120.0,0.20622907]
[1756229208606,0.1819334,110130.0,110120.0,0.20622907]
[1756229208876,0.00032985,110130.0,110120.0,0.20622907]
[1756229209088,0.00032985,110130.0,110120.0,0.85338617]
[1756229209282,0.00032985,110130.0,110120.0,0.29769109]
[1756229210176,0.00032985,110130.0,110120.0,0.85338617]
[1756229210379,0.1819334,110130.0,110120.0,0.45533109]
[1756229211004,0.1870934,110130.0,110120.0,0.27062104]
[1756229211845,0.1839034,110130.0,110120.0,0.27062104]
[1756229212058,0.1839034,110130.0,110120.0,0.11298104]
[1756229212289,0.1870934,110130.0,110120.0,0.45224109]
[1756229212510,0.1870934,110130.0,110120.0,0.26855104]
[1756229213763,0.1839034,110130.0,110120.0,0.45224109]
[1756229214183,0.1839034,110130.0,110120.0,0.27062104]
[1756229215471,0.1870934,110130.0,110120.0,0.26855104]
[1756229215607,0.1870934,110130.0,110120.0,0.01944902]
[1756229215811,0.74278848,110130.0,110120.0,0.17704902]
[1756229216195,0.74278848,110130.0,110120.0,0.01944902]
[1756229216377,0.74278848,110130.0,110120.0,0.17704902]
[1756229218298,0.74278848,110130.0,110120.0,0.1586]
[1756229218509,0.77009348,110130.0,110120.0,0.1576]
[1756229219095,0.2143984,110130.0,110120.0,0.1576]
[1756229219297,0.77009348,110130.0,110120.0,0.1576]
[1756229220723,0.18163654,110110.0,110100.0,0.09041902]
[1756229220934,0.18163654,110110.0,110100.0,0.33948104]
[1756229221124,0.18163654,110110.0,110100.0,0.34155104]
[1756229221466,0.74249162,110110.0,110100.0,0.06988]
[1756229221680,0.18165304,110100.0,110090.0,0.01700207]
[1756229221889,0.18165304,110100.0,110090.0,0.17460207]
[1756229222102,0.18165304,110100.0,110090.0,0.19721109]
[1756229222298,0.18165304,110100.0,110090.0,0.23863515]
[1756229222875,0.18163654,110110.0,110090.0,0.42030469]
[1756229223047,0.18163654,110110.0,110100.0,0.00836066]
[1756229223242,0.18163654,110110.0,110100.0,0.00743066]
[1756229224613,0.18163654,110110.0,110100.0,0.02487968]
[1756229226663,0.18163654,110110.0,110100.0,0.20653272]
[1756229226902,0.18163654,110110.0,110100.0,0.02260902]
[1756229227129,0.18163654,110110.0,110100.0,0.02487968]
[1756229227495,0.18163654,110110.0,110100.0,0.3002654]
[1756229227717,0.18163654,110110.0,110100.0,0.29572408]
[1756229229138,0.18163654,110110.0,110100.0,0.29772408]
[1756229229562,0.21802501,110120.0,110110.0,0.01744902]
[1756229229763,0.18163501,110120.0,110110.0,1.00928311]
[1756229229965,0.18363501,110120.0,110110.0,0.33833104]
[1756229230124,0.18683501,110120.0,110110.0,0.33631104]
[1756229230325,0.74253009,110120.0,110110.0,0.24484902]
[1756229230533,0.74253009,110120.0,110110.0,0.2274]
[1756229230767,0.74253009,110120.0,110110.0,0.15756]
[1756229231331,0.76983809,110120.0,110110.0,0.15756]
[1756229232668,0.21414301,110120.0,110110.0,0.15756]
[1756229232885,0.76983809,110120.0,110110.0,0.15756]
[1756229234078,0.18165304,110100.0,110090.0,0.14892515]
[1756229234327,0.73734812,110100.0,110090.0,0.14571515]
[1756229234526,0.74254812,110100.0,110090.0,0.30327515]
[1756229234776,0.74254812,110100.0,110090.0,0.26185109]
[1756229235015,1.08254812,110100.0,110090.0,0.08684207]
[1756229235182,1.08254812,110100.0,110090.0,0.17956207]
[1756229235401,1.10986012,110100.0,110090.0,0.17956207]
[1756229235585,1.10986012,110100.0,110090.0,0.17656207]
[1756229235925,1.11901469,110100.0,110090.0,0.17556207]
[1756229237616,1.11901469,110100.0,110090.0,0.17656207]
[1756229238013,1.11901469,110100.0,110090.0,0.01900207]
[1756229238221,1.11901469,110100.0,110090.0,0.17656207]
[1756229242049,1.11901469,110100.0,110090.0,0.01900207]
[1756229242262,1.21047671,110100.0,110090.0,0.01900207]
[1756229242469,5.96771971,110100.0,110090.0,0.01900207]
[1756229243286,5.98729066,110100.0,110090.0,0.01900207]
[1756229243497,5.96771971,110100.0,110090.0,0.01900207]
[1756229243705,5.96771971,110100.0,110090.0,0.01800207]
[1756229243930,5.98729318,110100.0,110090.0,0.01800207]
[1756229244168,5.98829318,110100.0,110090.0,0.01800207]
[1756229244387,5.4325981,110100.0,110090.0,0.01800207]
[1756229244604,5.98829318,110100.0,110090.0,0.01700207]
[1756229245021,5.99029318,110100.0,110090.0,0.01700207]
[1756229245650,5.99878852,110100.0,110090.0,0.01700207]
[1756229246280,6.15634852,110100.0,110090.0,0.01700207]
[1756229248139,6.15634759,110100.0,110090.0,0.01700207]
[1756229248675,5.99878759,110100.0,110090.0,0.01700207]
[1756229248899,6.15634759,110100.0,110090.0,0.01700207]
[1756229249099,5.90212557,110100.0,110090.0,0.02223207]
[1756229249320,5.87405769,110100.0,110090.0,0.02223207]
[1756229249729,4.97836261,110100.0,110090.0,0.17979207]
[1756229249936,0.19380761,110100.0,110090.0,0.17979207]
[1756229250620,0.53380761,110100.0,110090.0,0.17979207]
[1756229251326,0.52465304,110100.0,110090.0,0.37891063]
[1756229251528,0.52465304,110100.0,110090.0,0.19724109]
[1756229251737,0.18465304,110100.0,110090.0,0.19724109]
[1756229252797,0.18165304,110100.0,110090.0,0.19724109]
[1756229255186,0.18365304,110100.0,110090.0,0.03968109]
[1756229255397,0.73934812,110100.0,110090.0,0.19403109]
[1756229257299,0.74235812,110100.0,110090.0,0.19201109]
[1756229257708,0.73934812,110100.0,110090.0,0.19403109]
[1756229258215,0.74235812,110100.0,110090.0,0.17456207]
[1756229258421,1.08235812,110100.0,110090.0,0.01700207]
[1756229258627,6.10820613,110100.0,110090.0,0.01700207]
[1756229258854,6.11670697,110100.0,110090.0,1e-08]
[1756229259271,6.14111605,110100.0,110090.0,1e-08]
[1756229260365,5.42986097,110100.0,110090.0,1e-08]
[1756229260571,6.14311605,110100.0,110090.0,1e-08]
[1756229260786,6.14320296,110100.0,110090.0,1e-08]
[1756229260989,6.14420296,110100.0,110090.0,1e-08]
[1756229261173,6.14220296,110100.0,110090.0,1e-08]
[1756229261372,6.14120296,110100.0,110090.0,1e-08]
[1756229261581,6.14320648,110100.0,110090.0,1e-08]
[1756229261737,6.14420648,110100.0,110090.0,1e-08]
[1756229262352,6.14420793,110100.0,110090.0,1e-08]
[1756229263035,5.98664793,110100.0,110090.0,1e-08]
[1756229263265,6.14420793,110100.0,110090.0,1e-08]
[1756229263696,6.17152493,110100.0,110090.0,1e-08]
[1756229264363,6.17790591,110100.0,110090.0,1e-08]
[1756229264485,6.21045136,110100.0,110090.0,1e-08]
[1756229265096,6.8881105,110100.0,110090.0,1e-08]
[1756229265306,6.8798949,110100.0,110090.0,1e-08]
[1756229265900,6.84937613,110100.0,110090.0,1e-08]
[1756229266537,6.84737613,110100.0,110090.0,1e-08]
[1756229266735,6.84637613,110100.0,110090.0,1e-08]
[1756229267103,6.85237613,110100.0,110090.0,1e-08]
[1756229271600,6.85236576,110100.0,110090.0,1e-08]
[1756229272460,6.91552507,110100.0,110090.0,1e-08]
[1756229272669,7.05236576,110100.0,110090.0,1e-08]
[1756229272885,7.34915726,110100.0,110090.0,1e-08]
[1756229273976,7.31863849,110100.0,110090.0,1e-08]
[1756229274169,7.16107849,110100.0,110090.0,1e-08]
[1756229274376,7.25354759,110100.0,110090.0,1e-08]
[1756229276871,7.58440823,110100.0,110090.0,1e-08]
[1756229277081,7.65052294,110100.0,110090.0,1e-08]
[1756229277291,7.40052294,110100.0,110090.0,1e-08]
[1756229277497,7.65052294,110100.0,110090.0,1e-08]
[1756229277727,7.04296294,110100.0,110090.0,1e-08]
[1756229277938,7.65052294,110100.0,110090.0,1e-08]
[1756229278164,7.49196823,110100.0,110090.0,1e-08]
[1756229278407,7.77457741,110100.0,110090.0,1e-08]
[1756229279041,6.76888233,110100.0,110090.0,1e-08]
[1756229279710,7.32457741,110100.0,110090.0,1e-08]
[1756229279915,0.52171906,110060.0,110050.0,0.16224543]
[1756229280123,1.07741414,110060.0,110050.0,0.16426543]
[1756229280786,0.52171906,110060.0,110050.0,0.16426543]
[1756229281006,0.18171906,110060.0,110050.0,0.16426543]
[1756229281220,0.18180554,110060.0,110050.0,0.16526543]
[1756229281429,0.18180554,110060.0,110050.0,0.16726543]
[1756229281843,0.18180554,110060.0,110050.0,0.17039543]
[1756229282687,0.18180554,110060.0,110050.0,0.09775071]
[1756229283247,0.18180554,110060.0,110050.0,0.09547902]
[1756229283615,0.18180554,110060.0,110050.0,0.09775071]
[1756229283976,0.18180554,110060.0,110050.0,0.09547902]
[1756229284168,0.18180554,110060.0,110050.0,0.09775071]
[1756229286857,0.18180554,110060.0,110050.0,0.09547902]
[1756229287102,0.73750062,110060.0,110050.0,0.09234902]
[1756229287320,0.74268062,110060.0,110050.0,0.003]
[1756229287552,1.08268062,110060.0,110050.0,0.003]
[1756229287766,1.11000362,110060.0,110050.0,0.003]
[1756229288187,0.18173557,110050.0,110040.0,0.01744902]
[1756229288417,0.18175209,110040.0,110030.0,0.28842711]
[1756229288630,0.73744717,110040.0,110030.0,0.37988913]
[1756229288817,0.74677669,110040.0,110030.0,0.38188913]
[1756229289208,0.74677669,110040.0,110030.0,0.07188]
[1756229289415,0.74677669,110040.0,110030.0,0.2294]
[1756229289728,0.74677669,110040.0,110030.0,0.24684902]
[1756229290171,0.74677669,110040.0,110030.0,0.25084902]
[1756229290786,0.74677669,110040.0,110030.0,0.25407902]
[1756229290996,0.74677669,110040.0,110030.0,0.25107902]
[1756229291449,0.18175209,110040.0,110030.0,0.25307902]
[1756229292069,0.74635907,110040.0,110030.0,0.25307902]
[1756229292300,0.74635907,110040.0,110030.0,0.24984902]
[1756229292526,0.74635907,110040.0,110030.0,0.09232902]
[1756229292727,0.74635907,110040.0,110030.0,0.24984902]
[1756229293694,0.75153907,110040.0,110030.0,0.003]
[1756229294111,0.74635907,110040.0,110030.0,0.005]
[1756229294581,0.74847907,110040.0,110030.0,0.005]
[1756229294814,0.75153907,110040.0,110030.0,0.004]
[1756229295553,0.75153907,110040.0,110030.0,0.002]
[1756229295753,0.75153907,110040.0,110030.0,0.003]
[1756229296970,0.19066399,110040.0,110030.0,0.00623]
[1756229297417,0.18175209,110040.0,110030.0,0.02367902]
[1756229297667,0.18175209,110040.0,110030.0,0.20771972]
[1756229297879,0.18175209,110040.0,110030.0,0.20544762]
[1756229298303,0.18173557,110050.0,110040.0,0.01744902]
[1756229298511,0.18173557,110050.0,110040.0,0.17724092]
[1756229298718,0.18173557,110050.0,110040.0,0.18247092]
[1756229298938,0.18173557,110050.0,110040.0,0.36422301]
[1756229299145,0.18173557,110050.0,110040.0,0.18019902]
[1756229299354,0.18173557,110050.0,110040.0,0.18247092]
[1756229299566,0.18273557,110050.0,110040.0,0.18247092]
[1756229300015,0.18373557,110050.0,110040.0,0.18247092]
[1756229300470,0.18373557,110050.0,110040.0,0.17924092]
[1756229301932,0.18373557,110050.0,110040.0,0.36422301]
[1756229302145,0.002,110050.0,110040.0,0.52333313]
[1756229302364,0.002,110050.0,110040.0,1.07902821]
[1756229302797,0.001,110050.0,110040.0,1.07902821]
[1756229303221,0.002,110050.0,110040.0,1.07902821]
[1756229303427,0.18180554,110060.0,110050.0,0.19918459]
[1756229303653,0.18180554,110060.0,110050.0,0.29164661]
[1756229304299,0.18180554,110060.0,110050.0,0.29487661]
[1756229305127,0.18280554,110060.0,110050.0,0.29487661]
[1756229305623,0.18280554,110060.0,110050.0,0.11414104]
[1756229305850,0.18380554,110060.0,110050.0,0.11868442]
[1756229306269,0.18380554,110060.0,110050.0,0.11091104]
[1756229306547,0.18380554,110060.0,110050.0,0.26843104]
[1756229308078,0.18380554,110060.0,110050.0,0.45339661]
[1756229308286,0.00208648,110060.0,110050.0,0.4623]
[1756229308566,0.00208648,110060.0,110050.0,0.45339661]
[1756229308765,0.18380554,110060.0,110050.0,0.26843104]
[1756229309397,0.18280554,110060.0,110050.0,0.26843104]
[1756229310194,0.18180554,110060.0,110050.0,0.26843104]
[1756229310650,8.648e-05,110060.0,110050.0,0.45439661]
[1756229310861,8.648e-05,110060.0,110050.0,0.46344047]
[1756229311063,8.648e-05,110060.0,110050.0,1.01913555]
[1756229312725,8.648e-05,110060.0,110050.0,1.02113555]
[1756229313995,8.648e-05,110060.0,110050.0,1.02013555]
[1756229314214,8.648e-05,110060.0,110050.0,1.02113555]
[1756229314862,8.648e-05,110060.0,110050.0,0.46544047]
[1756229315128,8.648e-05,110060.0,110050.0,1.02113555]
[1756229315377,0.18180554,110060.0,110050.0,1.11594169]
[1756229315632,0.18180554,110060.0,110050.0,0.71772661]
[1756229316296,0.18180554,110060.0,110050.0,0.53599104]
[1756229316519,0.18180554,110060.0,110050.0,0.71772661]
[1756229317013,8.648e-05,110060.0,110050.0,0.71772661]
[1756229317239,8.648e-05,110060.0,110050.0,0.72066661]
[1756229317441,8.648e-05,110060.0,110050.0,1.27636169]
[1756229317632,8.648e-05,110060.0,110050.0,1.28567049]
[1756229317902,8.648e-05,110060.0,110050.0,0.72997541]
[1756229318137,8.648e-05,110060.0,110050.0,1.28567049]
[1756229324665,8.648e-05,110060.0,110050.0,1.28265049]
[1756229324906,0.00203648,110060.0,110050.0,0.72695541]
[1756229325324,0.18676554,110060.0,110050.0,0.56955541]
[1756229325533,0.18676554,110060.0,110050.0,0.71564661]
[1756229326387,0.18676554,110060.0,110050.0,0.71763661]
[1756229326595,0.18375554,110060.0,110050.0,0.71763661]
[1756229326800,0.18676554,110060.0,110050.0,1.28236766]
[1756229327012,0.18676554,110060.0,110050.0,0.45303661]
[1756229328030,0.18676554,110060.0,110050.0,0.11191104]
[1756229328236,0.18676554,110060.0,110050.0,0.26931104]
[1756229329123,0.18676554,110060.0,110050.0,0.45104661]
[1756229329568,0.18676554,110060.0,110050.0,0.26931104]
[1756229329772,0.18676554,110060.0,110050.0,0.45104661]
[1756229331092,0.18676554,110060.0,110050.0,0.26931104]
[1756229331510,0.18676554,110060.0,110050.0,0.11191104]
[1756229331720,0.18676554,110060.0,110050.0,0.26931104]
[1756229331925,0.74246062,110060.0,110050.0,0.26931104]
[1756229332149,0.74246062,110060.0,110050.0,0.26927104]
[1756229332370,0.74246062,110060.0,110050.0,0.02044902]
[1756229332590,1.08246062,110060.0,110050.0,0.16036]
[1756229332800,1.10978162,110060.0,110050.0,0.17780902]
[1756229335227,1.10978162,110060.0,110050.0,0.16036]
[1756229336466,1.10978162,110060.0,110050.0,0.15936]
[1756229336593,1.11078162,110060.0,110050.0,0.15736]
[1756229336949,1.11178162,110060.0,110050.0,0.15736]
[1756229338926,0.55608654,110060.0,110050.0,0.15736]
[1756229339318,1.11178162,110060.0,110050.0,0.15736]
[1756229340653,0.55608654,110060.0,110050.0,0.34108557]
[1756229340867,0.55112654,110060.0,110050.0,0.35853459]
[1756229341961,0.55112654,110060.0,110050.0,0.45293661]
[1756229341962,0.02940748,110060.0,110050.0,0.45293661]
[1756229342177,0.00208648,110060.0,110050.0,0.45293661]
[1756229342767,8.648e-05,110060.0,110050.0,0.45293661]
[1756229342967,8.648e-05,110060.0,110050.0,1.00863169]
[1756229343197,8.648e-05,110060.0,110050.0,0.45293661]
[1756229343398,0.18180554,110060.0,110050.0,0.44999661]
[1756229343971,0.18180554,110060.0,110050.0,0.48992885]
[1756229344174,8.648e-05,110060.0,110050.0,0.48992885]
[1756229346368,8.648e-05,110060.0,110050.0,1.04856393]
[1756229354664,8.648e-05,110060.0,110050.0,1.04856393]
[1756229358825,8.648e-05,110060.0,110050.0,0.49286885]
[1756229359067,8.648e-05,110060.0,110050.0,1.04856393]
[1756229360641,8.648e-05,110060.0,110050.0,0.89120393]
[1756229360841,8.648e-05,110060.0,110050.0,1.04848393]
[1756229361048,8.648e-05,110060.0,110050.0,1.05048393]
[1756229361250,8.648e-05,110060.0,110050.0,1.45048393]
[1756229362054,8.648e-05,110060.0,110050.0,1.44754393]
[1756229362256,8.648e-05,110060.0,110050.0,1.45373393]
[1756229363080,8.648e-05,110060.0,110050.0,1.41380169]
[1756229365587,0.00217648,110060.0,110050.0,0.69564661]
[1756229365793,0.00537648,110060.0,110050.0,0.45288661]
[1756229366005,0.18709554,110060.0,110050.0,0.09646202]
[1756229366228,0.18709554,110060.0,110050.0,0.43543759]
[1756229366455,0.18709554,110060.0,110050.0,0.45288661]
[1756229375328,0.18709554,110060.0,110050.0,0.29564661]
[1756229375549,0.18709554,110060.0,110050.0,0.45284661]
[1756229378703,0.18709554,110060.0,110050.0,0.49402366]
[1756229379341,0.18709554,110060.0,110050.0,0.15508809]
[1756229379553,0.18709554,110060.0,110050.0,0.22078607]
[1756229380636,0.18709554,110060.0,110050.0,0.40052164]
[1756229380852,8.648e-05,110060.0,110050.0,0.35832459]
[1756229381052,8.648e-05,110060.0,110050.0,0.36155459]
[1756229381253,0.02740648,110060.0,110050.0,0.35832459]
[1756229382097,8.648e-05,110060.0,110050.0,1.00548169]
[1756229382328,8.648e-05,110060.0,110050.0,1.00871169]
[1756229382545,8.648e-05,110060.0,110050.0,0.44978661]
[1756229382757,0.18677554,110060.0,110050.0,0.44978661]
[1756229382988,0.18677554,110060.0,110050.0,1.00548169]
[1756229383664,0.18677554,110060.0,110050.0,1.04642125]
[1756229384081,0.00505648,110060.0,110050.0,1.04642125]
[1756229384302,0.18677554,110060.0,110050.0,0.33158617]
[1756229384539,0.18677554,110060.0,110050.0,0.3069706]
[1756229385221,0.18677554,110060.0,110050.0,0.1498506]
[1756229385432,0.18677554,110060.0,110050.0,0.3069706]
[1756229385836,0.18677554,110060.0,110050.0,0.48870617]
[1756229386517,0.18677554,110060.0,110050.0,0.3069706]
[1756229389299,0.18677554,110060.0,110050.0,0.48870617]
[1756229389713,0.18677554,110060.0,110050.0,0.3069706]
[1756229389919,0.18677554,110060.0,110050.0,0.3069306]
[1756229390335,0.18677554,110060.0,110050.0,0.48866617]
[1756229391156,0.18677554,110060.0,110050.0,0.49064617]
[1756229391564,0.18677554,110060.0,110050.0,0.3069306]
[1756229392361,0.18677554,110060.0,110050.0,0.1498506]
[1756229392566,0.18677554,110060.0,110050.0,0.3069306]
[1756229393357,0.18677554,110060.0,110050.0,0.48866617]
[1756229393983,0.18677554,110060.0,110050.0,0.3069306]
[1756229394160,0.18677554,110060.0,110050.0,0.48866617]
[1756229395389,0.18677554,110060.0,110050.0,0.3069306]
[1756229395592,0.18677554,110060.0,110050.0,0.48866617]
[1756229395804,0.18677554,110060.0,110050.0,0.49064617]
[1756229396629,0.18677554,110060.0,110050.0,0.3089106]
[1756229396840,0.18677554,110060.0,110050.0,0.3069306]
[1756229397265,0.18677554,110060.0,110050.0,0.01744902]
[1756229397467,0.18677554,110060.0,110050.0,0.17448902]
[1756229399535,0.18677554,110060.0,110050.0,0.17676071]
[1756229400216,0.18677554,110060.0,110050.0,0.35849628]
[1756229400435,0.18381554,110060.0,110050.0,0.35820459]
[1756229400666,8.648e-05,110060.0,110050.0,0.91712967]
[1756229400906,8.648e-05,110060.0,110050.0,1.00859169]
[1756229402266,8.648e-05,110060.0,110050.0,1.03590669]
[1756229402922,8.648e-05,110060.0,110050.0,1.03790669]
[1756229403124,8.648e-05,110060.0,110050.0,1.03890669]
[1756229403495,8.648e-05,110060.0,110050.0,1.43890669]
[1756229405126,0.20708863,110080.0,110070.0,0.19915157]
[1756229405349,0.20909863,110080.0,110070.0,0.42848831]
[1756229406164,0.21205863,110080.0,110070.0,0.42848831]
[1756229406380,0.21405863,110080.0,110070.0,0.42848831]
[1756229406763,0.02740148,110080.0,110070.0,0.51995033]
[1756229406990,0.002,110080.0,110070.0,1.11920584]
[1756229407445,0.002,110080.0,110070.0,1.1285456]
[1756229407677,0.22102601,110090.0,110080.0,0.19913506]
[1756229407901,0.22314601,110090.0,110080.0,0.19913506]
[1756229408141,0.22314601,110090.0,110080.0,0.20123506]
[1756229408422,0.22314601,110090.0,110080.0,0.19913506]
[1756229409194,0.22414601,110090.0,110080.0,0.19913506]
[1756229409664,0.22514601,110090.0,110080.0,0.19913506]
[1756229410628,0.034523,110090.0,110080.0,0.20123506]
[1756229410829,0.034523,110090.0,110080.0,0.84839216]
[1756229410830,0.029313,110090.0,110080.0,0.84839216]
[1756229411188,0.002,110090.0,110080.0,0.85144216]
[1756229411390,0.001,110090.0,110080.0,0.85144216]
[1756229411595,0.001,110090.0,110080.0,0.29574708]
[1756229411805,0.21205548,110100.0,110090.0,0.18166954]
[1756229412040,0.21417548,110100.0,110090.0,0.33858954]
[1756229414139,0.21517548,110100.0,110090.0,0.33858954]
[1756229414365,0.21517548,110100.0,110090.0,0.15692]
[1756229414825,0.21617548,110100.0,110090.0,0.15692]
[1756229415430,0.21617548,110100.0,110090.0,0.33858954]
[1756229416954,0.18166954,110090.0,110080.0,0.29059708]
[1756229417140,0.18166954,110090.0,110080.0,0.44957708]
[1756229417362,0.21405548,110100.0,110080.0,0.44957708]
[1756229418048,0.21205548,110100.0,110080.0,0.44957708]
[1756229418256,0.21205548,110100.0,110090.0,0.18166954]
[1756229418644,0.21417548,110100.0,110090.0,0.18166954]
[1756229418849,0.21517548,110100.0,110090.0,0.18166954]
[1756229419057,0.21617548,110100.0,110090.0,0.18166954]
[1756229420042,0.21517548,110100.0,110090.0,0.18166954]
[1756229420241,0.21617548,110100.0,110090.0,0.18166954]
[1756229420789,0.21617548,110100.0,110080.0,0.44747708]
[1756229421012,0.18475954,110090.0,110080.0,0.29059708]
[1756229421209,0.74257462,110090.0,110080.0,0.26575104]
[1756229421420,0.18168604,110080.0,110070.0,0.11086717]
[1756229421633,0.74259112,110080.0,110070.0,0.07035674]
[1756229421846,0.74259112,110080.0,110070.0,0.22719674]
[1756229422742,0.21421304,110080.0,110070.0,0.22719674]
[1756229422949,0.21421304,110080.0,110070.0,0.40989929]
[1756229423198,0.21421304,110080.0,110070.0,0.22819674]
[1756229424036,0.21421304,110080.0,110070.0,0.23019674]
[1756229424210,0.21421304,110080.0,110070.0,0.41189929]
[1756229424420,0.21421304,110080.0,110070.0,0.41399929]
[1756229424599,0.032527,110080.0,110070.0,0.41189929]
[1756229425033,0.21421304,110080.0,110070.0,0.41189929]
[1756229425232,0.21421304,110080.0,110070.0,0.41399929]
[1756229426025,0.21421304,110080.0,110070.0,0.41189929]
[1756229426223,0.76990812,110080.0,110070.0,0.07335674]
[1756229426429,1.10885453,110080.0,110070.0,0.16027674]
[1756229426639,1.10885453,110080.0,110070.0,0.00347674]
[1756229426847,1.10885453,110080.0,110070.0,0.16027674]
[1756229427042,1.26565453,110080.0,110070.0,0.00347674]
[1756229427270,6.67005463,110080.0,110070.0,0.00047674]
[1756229427688,6.67105463,110080.0,110070.0,0.00047674]
[1756229428501,6.67205463,110080.0,110070.0,0.00047674]
[1756229428754,6.72120286,110080.0,110070.0,0.00047674]
[1756229428970,6.7055516,110080.0,110070.0,0.00047674]
[1756229429181,6.70116927,110080.0,110070.0,0.00047674]
[1756229429602,6.70016927,110080.0,110070.0,0.00047674]
[1756229429847,6.70216927,110080.0,110070.0,0.00047674]
[1756229430685,6.54536927,110080.0,110070.0,0.00047674]
[1756229430891,6.70216927,110080.0,110070.0,0.00047674]
[1756229431127,6.70216346,110080.0,110070.0,0.00047674]
[1756229431547,6.79360875,110080.0,110070.0,0.00047674]
[1756229431974,6.54536069,110080.0,110070.0,0.00047674]
[1756229432165,6.70216069,110080.0,110070.0,0.00047674]
[1756229433219,6.69365971,110080.0,110070.0,0.00047674]
[1756229433418,6.67405463,110080.0,110070.0,0.00047674]
[1756229436980,6.90210398,110080.0,110070.0,0.00047674]
[1756229437208,6.99991659,110080.0,110070.0,0.00047674]
[1756229438181,6.99354927,110080.0,110070.0,0.00047674]
[1756229438757,6.99154927,110080.0,110070.0,0.00047674]
[1756229438961,6.98954927,110080.0,110070.0,0.00047674]
[1756229439177,0.52175209,110040.0,110030.0,0.06988]
[1756229439385,0.52175209,110040.0,110030.0,0.00014305]
[1756229439386,1.07744717,110040.0,110030.0,0.00014305]
[1756229439600,1.07744717,110040.0,110030.0,0.00213305]
[1756229440037,1.10988517,110040.0,110030.0,0.00014305]
[1756229441094,1.10988517,110040.0,110030.0,0.00114305]
[1756229441526,5.86712817,110040.0,110030.0,0.00114305]
[1756229441732,6.11539019,110040.0,110030.0,0.00314305]
[1756229442154,6.12438099,110040.0,110030.0,0.00314305]
[1756229444775,6.77152136,110040.0,110030.0,0.00314305]
[1756229445212,6.85348583,110040.0,110030.0,0.00314305]
[1756229445417,6.82188851,110040.0,110030.0,0.00314305]
[1756229448282,7.14361154,110040.0,110030.0,0.00014305]
[1756229448489,7.43335113,110040.0,110030.0,1e-08]
[1756229448699,7.24495381,110040.0,110030.0,1e-08]
[1756229449015,7.46489946,110040.0,110030.0,1e-08]
[1756229449769,7.46389946,110040.0,110030.0,1e-08]
[1756229449973,7.46289946,110040.0,110030.0,1e-08]
[1756229450157,7.27549028,110040.0,110030.0,1e-08]
[1756229450396,7.43629028,110040.0,110030.0,1e-08]
[1756229450601,7.38736964,110040.0,110030.0,1e-08]
[1756229451222,7.272954,110040.0,110030.0,1e-08]
[1756229451450,7.38736702,110040.0,110030.0,1e-08]
[1756229451663,7.43610225,110040.0,110030.0,1e-08]
[1756229452258,7.38736702,110040.0,110030.0,1e-08]
[1756229453350,7.45245792,110040.0,110030.0,1e-08]
[1756229454225,7.87773291,110040.0,110030.0,1e-08]
[1756229454440,1.07749673,110010.0,110000.0,0.00348]
[1756229454654,6.10251373,110010.0,110000.0,0.00052977]
[1756229454859,6.10251373,110010.0,110000.0,0.00251977]
[1756229455312,6.15422317,110010.0,110000.0,0.00559977]
[1756229455525,5.59852809,110010.0,110000.0,0.00559977]
[1756229455735,6.15422317,110010.0,110000.0,0.00559977]
[1756229455944,6.15422317,110010.0,110000.0,0.00659977]
[1756229456155,5.59852809,110010.0,110000.0,0.00659977]
[1756229456389,6.15422317,110010.0,110000.0,0.00759977]
[1756229456599,5.99742317,110010.0,110000.0,0.18841795]
[1756229456806,6.15422317,110010.0,110000.0,0.18841795]
[1756229457012,6.15422317,110010.0,110000.0,0.00659977]
[1756229457915,6.24566846,110010.0,110000.0,0.00659977]
[1756229458128,6.24566846,110010.0,110000.0,0.00351977]
[1756229458321,6.27816238,110010.0,110000.0,0.00351977]
[1756229458796,6.18671709,110010.0,110000.0,0.00351977]
[1756229459266,6.02991709,110010.0,110000.0,0.00659977]
[1756229459475,6.18671709,110010.0,110000.0,0.18841795]
[1756229460429,6.18671709,110010.0,110000.0,0.00659977]
[1756229460624,6.02991709,110010.0,110000.0,0.18841795]
[1756229460831,6.18671709,110010.0,110000.0,0.18841795]
[1756229461289,6.18671709,110010.0,110000.0,0.00659977]
[1756229461497,6.18870709,110010.0,110000.0,0.00351977]
[1756229461722,6.19182709,110010.0,110000.0,0.00351977]
[1756229461932,6.18870709,110010.0,110000.0,0.00351977]
[1756229462344,6.18671709,110010.0,110000.0,0.18841795]
[1756229462766,6.18671709,110010.0,110000.0,0.00659977]
[1756229463189,6.24138256,110010.0,110000.0,0.002]
[1756229463396,6.21701212,110010.0,110000.0,0.002]
[1756229463614,5.66131704,110010.0,110000.0,0.00399]
[1756229463824,6.16745665,110010.0,110000.0,0.002]
[1756229465312,6.21619753,110010.0,110000.0,0.002]
[1756229465518,5.66050245,110010.0,110000.0,0.002]
[1756229465734,6.21619753,110010.0,110000.0,0.002]
[1756229465943,6.30764282,110010.0,110000.0,0.002]
[1756229466155,6.86806061,110010.0,110000.0,0.002]
[1756229466379,6.96281605,110010.0,110000.0,0.002]
[1756229466581,7.16281605,110010.0,110000.0,0.002]
[1756229467008,7.15433063,110010.0,110000.0,0.002]
[1756229467229,7.15433063,110010.0,110000.0,0.001]
[1756229467441,0.52181818,110000.0,109990.0,0.0004]
[1756229467691,6.7377673,110000.0,109990.0,0.00048648]
[1756229467905,6.7428573,110000.0,109990.0,0.00048648]
[1756229468122,5.47831314,110000.0,109990.0,0.00048648]
[1756229468335,6.19929615,110000.0,109990.0,0.00048648]
[1756229469436,6.26438705,110000.0,109990.0,0.00048648]
[1756229469850,6.26638705,110000.0,109990.0,0.00048648]
[1756229470282,5.71069197,110000.0,109990.0,0.00048648]
[1756229470505,6.26639761,110000.0,109990.0,0.00048648]
[1756229472495,6.26639761,110000.0,109980.0,0.73798632]
[1756229472496,0.52183471,109990.0,109980.0,0.73798632]
[1756229472739,5.38019717,109990.0,109980.0,0.55622175]
[1756229472966,0.62295417,109990.0,109980.0,0.00254667]
[1756229473170,0.61766829,109990.0,109980.0,0.00575667]
[1756229473405,0.77450829,109990.0,109980.0,0.00575667]
[1756229473609,5.62517331,109990.0,109980.0,0.00254667]
[1756229473812,5.62517331,109990.0,109980.0,0.00252667]
[1756229473813,5.65952673,109990.0,109980.0,0.00252667]
[1756229474244,5.6744068,109990.0,109980.0,0.00252667]
[1756229474668,5.62550481,109990.0,109980.0,0.00252667]
[1756229475743,5.50617887,109990.0,109980.0,0.18639791]
[1756229475963,5.62329255,109990.0,109980.0,0.18960791]
[1756229476188,5.63179819,109990.0,109980.0,0.18960791]
[1756229476398,5.63179806,109990.0,109980.0,0.18639791]